[Event "Late-Titled-Tuesday-Blitz-September-12-2023"]
[Site "Chess.com"]
[Date "2023.09.12"]
[Round "4"]
[White "ZuraTqebuchava"]
[Black "Schwindle"]
[Result "1-0"]
[WhiteElo "2264"]
[BlackElo "2427"]
[TimeControl "180+1"]
[EndTime "14:37:26 PDT"]
[Termination "ZuraTqebuchava won by resignation"]

1. e4 {[%clk 0:03:00.5]} 1... e6 {[%clk 0:03:00.1]} 2. d3 {[%clk 0:02:59.5]}
2... c5 {[%clk 0:03:00.3]} 3. Nf3 {[%clk 0:02:56.1]} 3... Nc6 {[%clk 0:03:00.9]}
4. Nc3 {[%clk 0:02:53.3]} 4... d6 {[%clk 0:03:01.4]} 5. g3 {[%clk 0:02:52.2]}
5... g6 {[%clk 0:03:01.8]} 6. Bg2 {[%clk 0:02:52.4]} 6... Bg7 {[%clk 0:03:02.4]}
7. O-O {[%clk 0:02:51.8]} 7... Nge7 {[%clk 0:03:03.1]} 8. Be3 {[%clk 0:02:44.8]}
8... e5 {[%clk 0:03:02.7]} 9. Ne1 {[%clk 0:02:38.9]} 9... f5 {[%clk 0:02:55.6]}
10. f4 {[%clk 0:02:36.6]} 10... O-O {[%clk 0:02:50.8]} 11. Nf3 {[%clk 0:02:30]}
11... Nd4 {[%clk 0:02:43.3]} 12. fxe5 {[%clk 0:02:23.8]} 12... dxe5 {[%clk
0:02:41.8]} 13. Bg5 {[%clk 0:02:04.8]} 13... h6 {[%clk 0:02:19.5]} 14. Bxe7
{[%clk 0:02:03]} 14... Qxe7 {[%clk 0:02:20.4]} 15. Nd5 {[%clk 0:02:02.8]} 15...
Qd8 {[%clk 0:02:17.9]} 16. Nxd4 {[%clk 0:01:59.9]} 16... cxd4 {[%clk 0:02:03.2]}
17. Kh1 {[%clk 0:01:28.8]} 17... Be6 {[%clk 0:01:53.5]} 18. c4 {[%clk
0:01:25.4]} 18... h5 {[%clk 0:01:40.2]} 19. Qe1 {[%clk 0:01:02.2]} 19... h4
{[%clk 0:01:15.9]} 20. gxh4 {[%clk 0:00:54.9]} 20... Bxd5 {[%clk 0:01:15]} 21.
exd5 {[%clk 0:00:46.5]} 21... Qd6 {[%clk 0:01:03.8]} 22. Rg1 {[%clk 0:00:43.5]}
22... Kh7 {[%clk 0:01:01.5]} 23. Bf3 {[%clk 0:00:40.9]} 23... Rae8 {[%clk
0:00:58.4]} 24. Qg3 {[%clk 0:00:39]} 24... Bh6 {[%clk 0:00:40.2]} 25. h5 {[%clk
0:00:32.8]} 25... g5 {[%clk 0:00:37.4]} 26. Bg2 {[%clk 0:00:25.5]} 26... g4
{[%clk 0:00:30.6]} 27. Raf1 {[%clk 0:00:22.9]} 27... Qf6 {[%clk 0:00:20.6]} 28.
Rxf5 {[%clk 0:00:22]} 28... Qg7 {[%clk 0:00:18.2]} 29. Rxf8 {[%clk 0:00:19.6]}
29... Rxf8 {[%clk 0:00:19.1]} 30. Be4+ {[%clk 0:00:19.9]} 30... Kh8 {[%clk
0:00:19.2]} 31. Qxg4 {[%clk 0:00:17.4]} 31... Qxg4 {[%clk 0:00:17.4]} 32. Rxg4
{[%clk 0:00:18.3]} 32... Be3 {[%clk 0:00:18.2]} 33. Kg2 {[%clk 0:00:09.9]} 33...
Rf2+ {[%clk 0:00:16.4]} 34. Kh3 {[%clk 0:00:10.2]} 34... Rxb2 {[%clk 0:00:17.3]}
35. h6 {[%clk 0:00:09.4]} 35... Bf4 {[%clk 0:00:13.7]} 36. Rg6 {[%clk
0:00:06.5]} 36... Rxh2+ {[%clk 0:00:12.7]} 37. Kg4 {[%clk 0:00:07]} 37... Rxh6
{[%clk 0:00:13]} 38. Rxh6+ {[%clk 0:00:05.8]} 38... Bxh6 {[%clk 0:00:13.9]} 39.
Kf5 {[%clk 0:00:06.4]} 39... Kg7 {[%clk 0:00:10.8]} 40. Kxe5 {[%clk 0:00:04.9]}
40... Be3 {[%clk 0:00:10.6]} 41. Ke6 {[%clk 0:00:04.8]} 41... Kf8 {[%clk
0:00:10.9]} 42. Bg6 {[%clk 0:00:04.4]} 1-0

[Event "Late-Titled-Tuesday-Blitz-September-12-2023"]
[Site "Chess.com"]
[Date "2023.09.12"]
[Round "4"]
[White "WindWhistler11"]
[Black "Garmendiarov"]
[Result "0-1"]
[WhiteElo "2476"]
[BlackElo "2358"]
[TimeControl "180+1"]
[EndTime "14:37:33 PDT"]
[Termination "Garmendiarov won on time"]

1. Nf3 {[%clk 0:03:00]} 1... Nf6 {[%clk 0:02:59.6]} 2. g3 {[%clk 0:03:00.2]}
2... g6 {[%clk 0:03:00.2]} 3. Bg2 {[%clk 0:03:00.5]} 3... Bg7 {[%clk 0:03:01]}
4. d3 {[%clk 0:03:00.8]} 4... d5 {[%clk 0:02:58.8]} 5. Nbd2 {[%clk 0:03:01.1]}
5... O-O {[%clk 0:02:58.6]} 6. O-O {[%clk 0:03:01.3]} 6... c5 {[%clk 0:02:52.9]}
7. e4 {[%clk 0:02:59.8]} 7... Nc6 {[%clk 0:02:50.1]} 8. c3 {[%clk 0:02:50.8]}
8... e5 {[%clk 0:02:47.7]} 9. a3 {[%clk 0:02:49.1]} 9... Re8 {[%clk 0:02:47.2]}
10. Re1 {[%clk 0:02:42]} 10... a5 {[%clk 0:02:41.3]} 11. a4 {[%clk 0:02:38.7]}
11... d4 {[%clk 0:02:29]} 12. Nc4 {[%clk 0:02:23.9]} 12... Qc7 {[%clk
0:02:06.4]} 13. Na3 {[%clk 0:02:15.2]} 13... b6 {[%clk 0:01:33.5]} 14. Nb5
{[%clk 0:02:10.3]} 14... Qd7 {[%clk 0:01:28.5]} 15. Qc2 {[%clk 0:01:53.9]} 15...
Ba6 {[%clk 0:01:27.3]} 16. Nd2 {[%clk 0:01:53.1]} 16... Rad8 {[%clk 0:00:59.7]}
17. Bf1 {[%clk 0:01:23.3]} 17... Na7 {[%clk 0:00:42.4]} 18. Nc4 {[%clk
0:01:17.9]} 18... Rb8 {[%clk 0:00:33]} 19. Ncd6 {[%clk 0:01:12.8]} 19... Red8
{[%clk 0:00:30.7]} 20. Nxa7 {[%clk 0:01:08.5]} 20... Qxa7 {[%clk 0:00:29.2]} 21.
Nb5 {[%clk 0:01:04.6]} 21... Qd7 {[%clk 0:00:29.3]} 22. c4 {[%clk 0:00:51.2]}
22... Qg4 {[%clk 0:00:19]} 23. h3 {[%clk 0:00:49.7]} 23... Qh5 {[%clk
0:00:18.7]} 24. h4 {[%clk 0:00:23.3]} 24... Bc8 {[%clk 0:00:17.9]} 25. Be2
{[%clk 0:00:20.5]} 25... Bg4 {[%clk 0:00:17.7]} 26. f3 {[%clk 0:00:20.9]} 26...
Bxf3 {[%clk 0:00:17.2]} 27. Nc7 {[%clk 0:00:16.7]} 27... Bxe2 {[%clk 0:00:14.9]}
28. Qxe2 {[%clk 0:00:17.6]} 28... Qxe2 {[%clk 0:00:13.6]} 29. Rxe2 {[%clk
0:00:18.5]} 29... Rb7 {[%clk 0:00:11.8]} 30. Nb5 {[%clk 0:00:18.9]} 30... Ng4
{[%clk 0:00:11.3]} 31. Kg2 {[%clk 0:00:17.5]} 31... Rf8 {[%clk 0:00:10.3]} 32.
Bd2 {[%clk 0:00:14.9]} 32... f5 {[%clk 0:00:09.1]} 33. exf5 {[%clk 0:00:13.5]}
33... gxf5 {[%clk 0:00:07.8]} 34. Rf1 {[%clk 0:00:13.8]} 34... Re7 {[%clk
0:00:07]} 35. Bg5 {[%clk 0:00:12.1]} 35... Ree8 {[%clk 0:00:06.8]} 36. Nc7
{[%clk 0:00:10]} 36... Rc8 {[%clk 0:00:07.1]} 37. Ne6 {[%clk 0:00:10]} 37... Rf7
{[%clk 0:00:06.7]} 38. Nd8 {[%clk 0:00:06]} 38... Rf8 {[%clk 0:00:05.5]} 39. Ne6
{[%clk 0:00:05.4]} 39... Rf7 {[%clk 0:00:06.1]} 40. h5 {[%clk 0:00:03.8]} 40...
Bf6 {[%clk 0:00:05.9]} 41. Bxf6 {[%clk 0:00:03.3]} 41... Rxf6 {[%clk 0:00:06.8]}
42. Ng5 {[%clk 0:00:01.5]} 42... Ne3+ {[%clk 0:00:06.9]} 0-1

[Event "Late-Titled-Tuesday-Blitz-September-12-2023"]
[Site "Chess.com"]
[Date "2023.09.12"]
[Round "4"]
[White "Igor_Lysyj"]
[Black "Bigfish1995"]
[Result "0-1"]
[WhiteElo "2846"]
[BlackElo "3054"]
[TimeControl "180+1"]
[EndTime "14:37:35 PDT"]
[Termination "Bigfish1995 won by resignation"]

1. d4 {[%clk 0:02:59.8]} 1... h6 {[%clk 0:03:00.5]} 2. e4 {[%clk 0:02:57.5]}
2... c6 {[%clk 0:02:56.1]} 3. c4 {[%clk 0:02:56.2]} 3... d5 {[%clk 0:02:50.3]}
4. exd5 {[%clk 0:02:53.5]} 4... cxd5 {[%clk 0:02:50.3]} 5. Nc3 {[%clk 0:02:53]}
5... Nf6 {[%clk 0:02:48.4]} 6. Nf3 {[%clk 0:02:52.5]} 6... e6 {[%clk 0:02:33.4]}
7. cxd5 {[%clk 0:02:49.7]} 7... Nxd5 {[%clk 0:02:29.6]} 8. Bd3 {[%clk
0:02:49.5]} 8... Nc6 {[%clk 0:02:25.9]} 9. O-O {[%clk 0:02:49]} 9... Be7 {[%clk
0:02:24.1]} 10. Bc2 {[%clk 0:02:35.7]} 10... O-O {[%clk 0:02:20.3]} 11. Qd3
{[%clk 0:02:32.8]} 11... Nf6 {[%clk 0:02:13.4]} 12. a3 {[%clk 0:02:31.6]} 12...
Re8 {[%clk 0:02:08.2]} 13. Bf4 {[%clk 0:02:25.6]} 13... Bf8 {[%clk 0:01:55.8]}
14. Rad1 {[%clk 0:02:24.2]} 14... a6 {[%clk 0:01:49]} 15. Ne5 {[%clk 0:02:02.9]}
15... Ne7 {[%clk 0:01:45]} 16. Qg3 {[%clk 0:01:55.8]} 16... Nh5 {[%clk
0:01:41.2]} 17. Qd3 {[%clk 0:01:54]} 17... g6 {[%clk 0:01:32.3]} 18. Bc1 {[%clk
0:01:48.2]} 18... Bg7 {[%clk 0:01:31.9]} 19. Qf3 {[%clk 0:01:46.6]} 19... Rf8
{[%clk 0:01:25.5]} 20. g4 {[%clk 0:01:20.6]} 20... Nf6 {[%clk 0:01:22.9]} 21.
Bxh6 {[%clk 0:01:20.4]} 21... Bxh6 {[%clk 0:01:22.9]} 22. Qxf6 {[%clk 0:01:20]}
22... Nd5 {[%clk 0:01:14]} 23. Qxd8 {[%clk 0:00:54.7]} 23... Rxd8 {[%clk
0:01:12.3]} 24. Nxd5 {[%clk 0:00:51.8]} 24... exd5 {[%clk 0:01:07.7]} 25. h3
{[%clk 0:00:50.5]} 25... Bd7 {[%clk 0:01:05.6]} 26. f4 {[%clk 0:00:46.3]} 26...
Rac8 {[%clk 0:01:03.5]} 27. Bd3 {[%clk 0:00:45.9]} 27... Be8 {[%clk 0:00:59.5]}
28. g5 {[%clk 0:00:43.7]} 28... Bg7 {[%clk 0:00:54.4]} 29. Kg2 {[%clk
0:00:43.1]} 29... Bd7 {[%clk 0:00:36.5]} 30. h4 {[%clk 0:00:40.7]} 30... Bxe5
{[%clk 0:00:34.4]} 31. fxe5 {[%clk 0:00:37.4]} 31... Kg7 {[%clk 0:00:33.8]} 32.
Rc1 {[%clk 0:00:34.4]} 32... Be6 {[%clk 0:00:30.3]} 33. Kg3 {[%clk 0:00:32.5]}
33... a5 {[%clk 0:00:27.6]} 34. Rc2 {[%clk 0:00:18.6]} 34... Rxc2 {[%clk
0:00:26.8]} 35. Bxc2 {[%clk 0:00:18.8]} 35... Rc8 {[%clk 0:00:27.7]} 36. Bd3
{[%clk 0:00:18.9]} 36... Rc6 {[%clk 0:00:27.9]} 37. Kf2 {[%clk 0:00:17.1]} 37...
Rb6 {[%clk 0:00:27.4]} 38. Rb1 {[%clk 0:00:16.4]} 38... Rb3 {[%clk 0:00:27.9]}
39. Bc2 {[%clk 0:00:16.1]} 39... Rh3 {[%clk 0:00:27.8]} 40. Kg2 {[%clk
0:00:11.8]} 40... Rxh4 {[%clk 0:00:27.8]} 41. b4 {[%clk 0:00:11.7]} 41... Rxd4
{[%clk 0:00:26.4]} 42. Ba4 {[%clk 0:00:10.4]} 42... Rd2+ {[%clk 0:00:21.4]} 43.
Kf3 {[%clk 0:00:09.6]} 43... Rd3+ {[%clk 0:00:21.2]} 44. Kf2 {[%clk 0:00:09]}
44... Rxa3 {[%clk 0:00:21.6]} 45. Bd1 {[%clk 0:00:08.1]} 45... a4 {[%clk
0:00:21.1]} 46. b5 {[%clk 0:00:07.8]} 46... Ra2+ {[%clk 0:00:21.1]} 47. Ke3
{[%clk 0:00:08.1]} 47... a3 {[%clk 0:00:21.2]} 48. Kd4 {[%clk 0:00:08.3]} 48...
Rb2 {[%clk 0:00:18.8]} 49. Rxb2 {[%clk 0:00:07.5]} 49... axb2 {[%clk 0:00:18.9]}
50. Bc2 {[%clk 0:00:07.9]} 50... Bf5 {[%clk 0:00:19.5]} 51. Kc3 {[%clk
0:00:08.2]} 51... b1=Q {[%clk 0:00:19.6]} 0-1

[Event "Late-Titled-Tuesday-Blitz-September-12-2023"]
[Site "Chess.com"]
[Date "2023.09.12"]
[Round "4"]
[White "Athanasios2"]
[Black "SalihEke"]
[Result "1-0"]
[WhiteElo "2708"]
[BlackElo "2510"]
[TimeControl "180+1"]
[EndTime "14:37:37 PDT"]
[Termination "Athanasios2 won on time"]

1. Nf3 {[%clk 0:03:00.9]} 1... d5 {[%clk 0:03:00.2]} 2. e3 {[%clk 0:03:00.6]}
2... c5 {[%clk 0:03:00.1]} 3. b3 {[%clk 0:03:00.4]} 3... Nc6 {[%clk 0:03:00.7]}
4. Bb2 {[%clk 0:03:00.9]} 4... Nf6 {[%clk 0:03:01.3]} 5. d4 {[%clk 0:03:01.1]}
5... cxd4 {[%clk 0:03:01.2]} 6. Nxd4 {[%clk 0:03:02]} 6... g6 {[%clk 0:02:59.9]}
7. Nd2 {[%clk 0:02:58.9]} 7... Bg7 {[%clk 0:03:00.2]} 8. Be2 {[%clk 0:02:58.4]}
8... O-O {[%clk 0:03:00.5]} 9. O-O {[%clk 0:02:58.4]} 9... Re8 {[%clk
0:02:56.6]} 10. c4 {[%clk 0:02:55.6]} 10... e5 {[%clk 0:02:51.8]} 11. Nxc6
{[%clk 0:02:53.7]} 11... bxc6 {[%clk 0:02:52.7]} 12. Nf3 {[%clk 0:02:52.4]}
12... Ne4 {[%clk 0:02:49.8]} 13. Rc1 {[%clk 0:02:49.2]} 13... Bb7 {[%clk
0:02:49.3]} 14. Qc2 {[%clk 0:02:46.6]} 14... Rc8 {[%clk 0:02:48.1]} 15. Rfd1
{[%clk 0:02:46.5]} 15... Qe7 {[%clk 0:02:47.4]} 16. Nd2 {[%clk 0:02:42.5]} 16...
Nxd2 {[%clk 0:02:41.4]} 17. Qxd2 {[%clk 0:02:43.4]} 17... Red8 {[%clk
0:02:40.6]} 18. Qa5 {[%clk 0:02:38.8]} 18... Ba8 {[%clk 0:02:29.6]} 19. h3
{[%clk 0:02:26.1]} 19... d4 {[%clk 0:02:29.2]} 20. exd4 {[%clk 0:02:17.1]} 20...
exd4 {[%clk 0:02:29.5]} 21. Bf3 {[%clk 0:02:17.7]} 21... c5 {[%clk 0:02:29.6]}
22. Bxa8 {[%clk 0:02:13]} 22... Rxa8 {[%clk 0:02:29.8]} 23. Re1 {[%clk
0:02:12.7]} 23... Qd7 {[%clk 0:02:30.4]} 24. Qxc5 {[%clk 0:02:10.7]} 24... d3
{[%clk 0:02:18.1]} 25. Bxg7 {[%clk 0:02:06.9]} 25... d2 {[%clk 0:02:13.1]} 26.
Bc3 {[%clk 0:01:56.1]} 26... dxc1=Q {[%clk 0:02:08.5]} 27. Rxc1 {[%clk
0:01:54.1]} 27... Re8 {[%clk 0:01:59.9]} 28. Qg5 {[%clk 0:01:35.4]} 28... Qe7
{[%clk 0:01:50.1]} 29. Qf4 {[%clk 0:01:30.2]} 29... Rad8 {[%clk 0:01:22.9]} 30.
c5 {[%clk 0:01:05.3]} 30... Rd5 {[%clk 0:01:05.1]} 31. b4 {[%clk 0:00:59.9]}
31... Qg5 {[%clk 0:00:52.8]} 32. Qxg5 {[%clk 0:00:50.4]} 32... Rxg5 {[%clk
0:00:53.1]} 33. Rd1 {[%clk 0:00:51]} 33... a5 {[%clk 0:00:48.9]} 34. a3 {[%clk
0:00:50.6]} 34... Rf5 {[%clk 0:00:29.7]} 35. c6 {[%clk 0:00:36.5]} 35... Rf4
{[%clk 0:00:09.5]} 36. Bd4 {[%clk 0:00:13]} 36... axb4 {[%clk 0:00:04.4]} 37.
axb4 {[%clk 0:00:13.9]} 37... Rf5 {[%clk 0:00:02.3]} 38. c7 {[%clk 0:00:09.5]}
38... Rc8 {[%clk 0:00:02.9]} 39. Rc1 {[%clk 0:00:07.4]} 39... Rd5 {[%clk
0:00:02.8]} 40. Be3 {[%clk 0:00:06.9]} 40... Rb5 {[%clk 0:00:02.3]} 41. Rc4
{[%clk 0:00:06.6]} 41... f6 {[%clk 0:00:01.3]} 42. g4 {[%clk 0:00:05.3]} 42...
Kf7 {[%clk 0:00:01.7]} 43. Kg2 {[%clk 0:00:05.9]} 43... Ke6 {[%clk 0:00:02.2]}
44. Bf4 {[%clk 0:00:06.5]} 44... g5 {[%clk 0:00:02]} 45. Bg3 {[%clk 0:00:06.9]}
1-0

[Event "Late-Titled-Tuesday-Blitz-September-12-2023"]
[Site "Chess.com"]
[Date "2023.09.12"]
[Round "4"]
[White "kuli4ik"]
[Black "ameetghasi100"]
[Result "1-0"]
[WhiteElo "2952"]
[BlackElo "2692"]
[TimeControl "180+1"]
[EndTime "14:37:38 PDT"]
[Termination "kuli4ik won by checkmate"]

1. Nf3 {[%clk 0:02:58.9]} 1... g6 {[%clk 0:03:00.2]} 2. d4 {[%clk 0:02:57.8]}
2... Bg7 {[%clk 0:03:01.1]} 3. e3 {[%clk 0:02:58.3]} 3... Nf6 {[%clk 0:03:01.6]}
4. Be2 {[%clk 0:02:58.7]} 4... O-O {[%clk 0:03:02.5]} 5. O-O {[%clk 0:02:59.1]}
5... d6 {[%clk 0:03:03.4]} 6. b4 {[%clk 0:02:59]} 6... Nbd7 {[%clk 0:03:01.5]}
7. Bb2 {[%clk 0:02:59.1]} 7... e5 {[%clk 0:02:48]} 8. dxe5 {[%clk 0:02:57.8]}
8... Ng4 {[%clk 0:02:47.6]} 9. c4 {[%clk 0:02:57.1]} 9... Ndxe5 {[%clk
0:02:41.3]} 10. Nc3 {[%clk 0:02:37.2]} 10... a5 {[%clk 0:02:35.1]} 11. a3 {[%clk
0:02:36.4]} 11... Be6 {[%clk 0:02:26.3]} 12. Nd4 {[%clk 0:02:20.4]} 12... Bd7
{[%clk 0:01:54.3]} 13. h3 {[%clk 0:02:16.5]} 13... Nf6 {[%clk 0:01:53.1]} 14.
Qc2 {[%clk 0:02:12.3]} 14... Re8 {[%clk 0:01:47.6]} 15. Rfd1 {[%clk 0:02:11.6]}
15... Qc8 {[%clk 0:01:22.2]} 16. Bf1 {[%clk 0:02:10.9]} 16... Nc6 {[%clk
0:01:17.2]} 17. Nxc6 {[%clk 0:02:05.7]} 17... Bxc6 {[%clk 0:01:18.1]} 18. b5
{[%clk 0:01:45.6]} 18... Be4 {[%clk 0:01:15]} 19. Bd3 {[%clk 0:01:37.1]} 19...
Qf5 {[%clk 0:01:07.1]} 20. Nxe4 {[%clk 0:01:34.6]} 20... Nxe4 {[%clk 0:00:52.8]}
21. Bxg7 {[%clk 0:01:33.2]} 21... Kxg7 {[%clk 0:00:51.2]} 22. f3 {[%clk
0:01:32.9]} 22... Qc5 {[%clk 0:00:38.2]} 23. Bxe4 {[%clk 0:01:32]} 23... Qxe3+
{[%clk 0:00:38.8]} 24. Qf2 {[%clk 0:01:32]} 24... Qxf2+ {[%clk 0:00:39.4]} 25.
Kxf2 {[%clk 0:01:31.7]} 25... Rab8 {[%clk 0:00:40.3]} 26. Re1 {[%clk 0:01:29.4]}
26... Re5 {[%clk 0:00:41.2]} 27. Bd5 {[%clk 0:01:28.2]} 27... c6 {[%clk
0:00:41]} 28. Rxe5 {[%clk 0:01:24.1]} 28... dxe5 {[%clk 0:00:41.2]} 29. bxc6
{[%clk 0:01:24.5]} 29... bxc6 {[%clk 0:00:42.1]} 30. Bxc6 {[%clk 0:01:25.1]}
30... Rb2+ {[%clk 0:00:42.9]} 31. Kf1 {[%clk 0:01:24.8]} 31... Rc2 {[%clk
0:00:43.8]} 32. Bd5 {[%clk 0:01:20.5]} 32... f5 {[%clk 0:00:44.2]} 33. Rb1
{[%clk 0:01:17]} 33... Kh6 {[%clk 0:00:45.1]} 34. Rb5 {[%clk 0:01:13.7]} 34...
Kg5 {[%clk 0:00:45.5]} 35. g3 {[%clk 0:00:59.5]} 35... f4 {[%clk 0:00:25.3]} 36.
h4+ {[%clk 0:00:57.7]} 36... Kh5 {[%clk 0:00:25.5]} 37. Be4 {[%clk 0:00:54.4]}
37... Rc1+ {[%clk 0:00:24.1]} 38. Kg2 {[%clk 0:00:54.2]} 38... fxg3 {[%clk
0:00:23.5]} 39. Kxg3 {[%clk 0:00:53.4]} 39... Rxc4 {[%clk 0:00:23.6]} 40. Rxe5+
{[%clk 0:00:52.7]} 40... Kh6 {[%clk 0:00:24.5]} 41. Rxa5 {[%clk 0:00:53.1]}
41... Kg7 {[%clk 0:00:24.6]} 42. h5 {[%clk 0:00:50.8]} 42... Kh6 {[%clk
0:00:25.5]} 43. hxg6 {[%clk 0:00:50.1]} 43... hxg6 {[%clk 0:00:22.9]} 44. Ra6
{[%clk 0:00:50.3]} 44... Kg5 {[%clk 0:00:21.3]} 45. Rxg6+ {[%clk 0:00:49.5]}
45... Kh5 {[%clk 0:00:22.2]} 46. Ra6 {[%clk 0:00:48.1]} 46... Rc5 {[%clk
0:00:22.1]} 47. a4 {[%clk 0:00:46.8]} 47... Rg5+ {[%clk 0:00:22.2]} 48. Kf2
{[%clk 0:00:44.8]} 48... Rc5 {[%clk 0:00:23.1]} 49. Rb6 {[%clk 0:00:41.5]} 49...
Rc3 {[%clk 0:00:24]} 50. a5 {[%clk 0:00:40.8]} 50... Ra3 {[%clk 0:00:24.9]} 51.
a6 {[%clk 0:00:39.9]} 51... Ra2+ {[%clk 0:00:25.8]} 52. Kg3 {[%clk 0:00:38.4]}
52... Ra3 {[%clk 0:00:26.7]} 53. Kf4 {[%clk 0:00:31]} 53... Ra5 {[%clk
0:00:27.6]} 54. Ke3 {[%clk 0:00:27.7]} 54... Ra3+ {[%clk 0:00:28.5]} 55. Bd3
{[%clk 0:00:27.6]} 55... Rxa6 {[%clk 0:00:29.4]} 56. Rxa6 {[%clk 0:00:24.8]}
56... Kh4 {[%clk 0:00:28.6]} 57. Rg6 {[%clk 0:00:23.9]} 57... Kh3 {[%clk
0:00:28.5]} 58. Kf4 {[%clk 0:00:22.9]} 58... Kh2 {[%clk 0:00:29.4]} 59. Rg3
{[%clk 0:00:21.2]} 59... Kh1 {[%clk 0:00:28.9]} 60. Ke3 {[%clk 0:00:21.3]} 60...
Kh2 {[%clk 0:00:29.8]} 61. Kf2 {[%clk 0:00:20.9]} 61... Kh1 {[%clk 0:00:29.8]}
62. Rh3# {[%clk 0:00:21.4]} 1-0

[Event "Late-Titled-Tuesday-Blitz-September-12-2023"]
[Site "Chess.com"]
[Date "2023.09.12"]
[Round "4"]
[White "FredddieCroderg"]
[Black "TERMINATOR_PC"]
[Result "0-1"]
[WhiteElo "2333"]
[BlackElo "2538"]
[TimeControl "180+1"]
[EndTime "14:37:38 PDT"]
[Termination "TERMINATOR_PC won by resignation"]

1. e4 {[%clk 0:03:00.9]} 1... e5 {[%clk 0:02:59.9]} 2. Nf3 {[%clk 0:03:00.3]}
2... Nc6 {[%clk 0:03:00.5]} 3. d4 {[%clk 0:03:00.7]} 3... exd4 {[%clk
0:03:00.6]} 4. Bc4 {[%clk 0:03:01.3]} 4... Nf6 {[%clk 0:03:00.8]} 5. O-O {[%clk
0:03:00.9]} 5... Nxe4 {[%clk 0:03:01.2]} 6. Re1 {[%clk 0:03:01.5]} 6... d5
{[%clk 0:03:01.7]} 7. Bxd5 {[%clk 0:03:02]} 7... Qxd5 {[%clk 0:03:02.6]} 8. Nc3
{[%clk 0:03:02.5]} 8... Qd7 {[%clk 0:03:01.9]} 9. Nxe4 {[%clk 0:03:02.4]} 9...
Be7 {[%clk 0:03:02.1]} 10. Bg5 {[%clk 0:03:02.4]} 10... O-O {[%clk 0:03:01.4]}
11. Bxe7 {[%clk 0:03:01.1]} 11... Qxe7 {[%clk 0:03:02.3]} 12. Nxd4 {[%clk
0:03:00.2]} 12... Bd7 {[%clk 0:03:02.8]} 13. Nb3 {[%clk 0:02:48.3]} 13... Bf5
{[%clk 0:02:35.6]} 14. Nec5 {[%clk 0:02:43]} 14... Qf6 {[%clk 0:02:35.5]} 15. c3
{[%clk 0:02:37.4]} 15... Rad8 {[%clk 0:02:27.8]} 16. Qf3 {[%clk 0:02:33.3]}
16... b6 {[%clk 0:02:24.7]} 17. Ne4 {[%clk 0:02:29.8]} 17... Qg6 {[%clk
0:02:24.2]} 18. Ng3 {[%clk 0:02:25.1]} 18... Bc2 {[%clk 0:02:23.7]} 19. h4
{[%clk 0:02:15.9]} 19... h6 {[%clk 0:02:16.6]} 20. h5 {[%clk 0:02:15.6]} 20...
Qd6 {[%clk 0:02:10.8]} 21. Re3 {[%clk 0:01:51.5]} 21... Ne5 {[%clk 0:02:01.5]}
22. Qf4 {[%clk 0:01:41.5]} 22... Nc4 {[%clk 0:01:58.9]} 23. Qxd6 {[%clk
0:01:35.7]} 23... cxd6 {[%clk 0:01:50.6]} 24. Re2 {[%clk 0:01:19.8]} 24... Bd3
{[%clk 0:01:46.3]} 25. Re7 {[%clk 0:01:16.9]} 25... Nxb2 {[%clk 0:01:27.7]} 26.
Rxa7 {[%clk 0:01:15.5]} 26... Rc8 {[%clk 0:01:28.2]} 27. Rb7 {[%clk 0:01:13.6]}
27... Na4 {[%clk 0:01:22.9]} 28. Rc1 {[%clk 0:00:55.6]} 28... d5 {[%clk
0:01:15.4]} 29. Nf1 {[%clk 0:00:49.5]} 29... Nxc3 {[%clk 0:01:04.1]} 30. Nd4
{[%clk 0:00:39.5]} 30... Rfe8 {[%clk 0:00:46.8]} 31. Ne3 {[%clk 0:00:36.9]}
31... b5 {[%clk 0:00:41.2]} 32. a3 {[%clk 0:00:27.2]} 32... Re4 {[%clk
0:00:35.6]} 33. Nxd5 {[%clk 0:00:16.7]} 33... Rxd4 {[%clk 0:00:30.2]} 34. Rxc3
{[%clk 0:00:15.5]} 34... Re8 {[%clk 0:00:27.3]} 35. Ne3 {[%clk 0:00:13.3]} 35...
Be2 {[%clk 0:00:22.4]} 36. Rc5 {[%clk 0:00:06.6]} 36... Ra8 {[%clk 0:00:17.2]}
37. Rc3 {[%clk 0:00:04.3]} 37... Rda4 {[%clk 0:00:11.6]} 38. Rbc7 {[%clk
0:00:04.1]} 38... Rxa3 {[%clk 0:00:11]} 39. Rxa3 {[%clk 0:00:04.3]} 39... Rxa3
{[%clk 0:00:11.9]} 40. Rc8+ {[%clk 0:00:04.4]} 40... Kh7 {[%clk 0:00:12.1]} 41.
Rc7 {[%clk 0:00:05.3]} 41... Bxh5 {[%clk 0:00:11.7]} 42. Rb7 {[%clk 0:00:04.5]}
42... Rb3 {[%clk 0:00:12.2]} 43. Kh2 {[%clk 0:00:03.5]} 43... Bg6 {[%clk
0:00:11.9]} 44. Kg3 {[%clk 0:00:03.9]} 44... Rb1 {[%clk 0:00:12.2]} 45. Kf3
{[%clk 0:00:04]} 45... b4 {[%clk 0:00:12.5]} 46. Ke2 {[%clk 0:00:04.6]} 46... b3
{[%clk 0:00:12.9]} 47. Kd2 {[%clk 0:00:05.2]} 47... b2 {[%clk 0:00:13.3]} 48.
Nd1 {[%clk 0:00:04.2]} 48... Rxd1+ {[%clk 0:00:13.1]} 49. Kxd1 {[%clk
0:00:03.9]} 49... b1=Q+ {[%clk 0:00:14]} 50. Rxb1 {[%clk 0:00:03.6]} 50... Bxb1
{[%clk 0:00:14.9]} 0-1